bitfinex-derivatives/quotes_BTCF0:USTF0_20250805
["timestamp","ask_amount","ask_price","bid_price","bid_amount"]
[1754407454356,0.9057695,113130.0,113120.0,0.65953026]
[1754407455156,0.9057695,113130.0,113120.0,0.65765026]
[1754407455552,0.9057695,113130.0,113120.0,0.01821026]
[1754407455753,0.3489545,113120.0,113110.0,0.11076135]
[1754407455953,0.1768401,113110.0,113100.0,0.11076135]
[1754407456157,0.9028008,113110.0,113100.0,0.74992135]
[1754407456357,0.3489701,113110.0,113100.0,0.63916]
[1754407456747,0.3489701,113110.0,113100.0,0.8160158]
[1754407456948,0.2991657,113100.0,113090.0,1.70334388]
[1754407457152,0.3489857,113100.0,113090.0,2.23178253]
[1754407457357,0.3489857,113100.0,113090.0,2.2224]
[1754407458055,0.3489857,113100.0,113090.0,1.97258714]
[1754407458458,0.3489857,113100.0,113090.0,2.14945854]
[1754407458660,0.3489857,113100.0,113090.0,1.97258714]
[1754407458954,0.3489857,113100.0,113090.0,2.2274]
[1754407459160,0.3489857,113100.0,113090.0,1.86848]
[1754407459362,0.3489857,113100.0,113090.0,1.22428]
[1754407459560,1.0220064,113100.0,113090.0,1.22528]
[1754407459758,1.0220064,113100.0,113090.0,1.97526714]
[1754407460560,1.0220064,113100.0,113090.0,0.75286714]
[1754407460858,0.349017,113080.0,113070.0,0.15827511]
[1754407461060,1.5636477,113080.0,113070.0,0.10944601]
[1754407461261,0.1769027,113070.0,113060.0,0.6408]
[1754407461459,0.9028634,113070.0,113060.0,0.6408]
[1754407461761,0.9028634,113070.0,113060.0,0.70086]
[1754407461957,0.9028634,113070.0,113060.0,0.06006]
[1754407462155,0.3490327,113070.0,113060.0,0.70114]
[1754407462355,0.9028634,113070.0,113060.0,0.70114]
[1754407462552,0.3490327,113070.0,113060.0,0.70114]
[1754407462758,0.9038634,113070.0,113060.0,0.70114]
[1754407463451,0.9058634,113070.0,113060.0,0.06006]
[1754407464162,0.3520327,113070.0,113060.0,0.70074]
[1754407464366,0.9048634,113070.0,113060.0,0.70074]
[1754407464560,1.0218034,113070.0,113060.0,0.70074]
[1754407464764,1.3826034,113070.0,113060.0,0.70074]
[1754407464959,1.3826034,113070.0,113040.0,0.75037]
[1754407464960,0.301964,113050.0,113040.0,0.75037]
[1754407465165,1.0121647,113050.0,113040.0,0.64076]
[1754407465360,1.2600247,113050.0,113040.0,0.64076]
[1754407466560,1.2600247,113050.0,113010.0,0.51931919]
[1754407466561,0.1769809,113020.0,113010.0,0.06006]
[1754407466754,0.1770123,113000.0,112990.0,0.3608]
[1754407466961,0.3454723,113000.0,112990.0,0.8877971]
[1754407467264,0.2213523,113000.0,112990.0,1.2393279]
[1754407467765,0.2544667,113010.0,113000.0,0.3255584]
[1754407467766,0.2655922,113010.0,113000.0,0.3255584]
[1754407467965,0.2655922,113010.0,113000.0,0.42086]
[1754407468158,0.2655922,113010.0,113000.0,0.5978723]
[1754407468559,0.1769925,113020.0,113010.0,0.2370566]
[1754407468759,0.2213325,113020.0,113010.0,1.2393366]
[1754407468964,0.2213325,113020.0,113010.0,1.06234]
[1754407469266,0.3454525,113020.0,113010.0,1.06234]
[1754407469456,0.3454525,113020.0,113010.0,0.70154]
[1754407469662,0.8992832,113020.0,113010.0,0.70154]
[1754407469867,1.2600832,113020.0,113010.0,0.64148]
[1754407470064,0.3454566,113010.0,113000.0,0.42086]
[1754407470260,0.3454566,113010.0,113000.0,1.0623]
[1754407470467,0.2213366,113010.0,113000.0,1.2393123]
[1754407470666,0.2213366,113010.0,113000.0,1.0623]
[1754407470963,0.3454566,113010.0,113000.0,1.0623]
[1754407471162,0.3454566,113010.0,113000.0,1.2393123]
[1754407471366,0.3454566,113010.0,113000.0,1.0643]
[1754407471665,0.3454566,113010.0,113000.0,1.0673]
[1754407472271,0.3454566,113010.0,113000.0,1.2443123]
[1754407472569,0.2655794,113020.0,113010.0,0.2370566]
[1754407472770,0.2655794,113020.0,113010.0,0.42086]
[1754407473064,0.3896994,113020.0,113010.0,0.42086]
[1754407473662,0.04434,113020.0,113010.0,0.5978566]
[1754407473870,0.2213209,113020.0,113010.0,0.5978566]
[1754407474659,0.2213087,113030.0,113020.0,0.1769809]
[1754407474866,0.04434,113030.0,113020.0,1.2689881]
[1754407475165,0.3097802,113040.0,113030.0,0.1769653]
[1754407475364,0.4339002,113040.0,113030.0,0.5978253]
[1754407475565,0.2212896,113040.0,113030.0,0.5978253]
[1754407475765,0.04434,113040.0,113030.0,0.5978253]
[1754407475966,0.3120762,113050.0,113040.0,0.1769496]
[1754407476167,0.3564162,113050.0,113040.0,1.2408096]
[1754407476360,0.4338762,113050.0,113040.0,1.06386]
[1754407476570,0.9877069,113050.0,113040.0,1.06386]
[1754407476962,0.4338762,113050.0,113040.0,1.2408096]
[1754407477170,0.3097562,113050.0,113040.0,1.2408096]
[1754407477360,0.4338762,113050.0,113040.0,1.06386]
[1754407477567,0.9877069,113050.0,113040.0,1.06386]
[1754407478174,0.4348762,113050.0,113040.0,1.2408096]
[1754407478472,0.3107562,113050.0,113040.0,1.2408096]
[1754407478670,0.04634,113050.0,113040.0,1.2408096]
[1754407478970,0.002,113050.0,113040.0,1.2400896]
[1754407479473,0.2242739,113050.0,113040.0,1.2400896]
[1754407479869,0.04734,113050.0,113040.0,1.2400896]
[1754407480264,0.04634,113050.0,113040.0,1.2400896]
[1754407480573,0.002,113050.0,113040.0,1.2410896]
[1754407480973,0.178934,113050.0,113040.0,1.2410896]
[1754407481179,0.04434,113050.0,113040.0,1.2420896]
[1754407481474,0.04434,113050.0,113040.0,1.2430896]
[1754407481770,0.2211614,113060.0,113050.0,0.236994]
[1754407482074,0.2655014,113060.0,113050.0,0.597794]
[1754407484069,0.2655014,113060.0,113050.0,0.598794]
[1754407484977,0.3896214,113060.0,113050.0,0.598794]
[1754407486474,0.16846,113060.0,113050.0,0.598794]
[1754407486679,0.4338282,113070.0,113060.0,0.2369783]
[1754407486887,0.4338282,113070.0,113060.0,1.2379783]
[1754407487083,0.5467682,113070.0,113060.0,1.2379783]
[1754407488074,0.5487682,113070.0,113060.0,1.2379783]
[1754407488280,0.5045395,113070.0,113060.0,1.2379783]
[1754407488586,0.2674795,113070.0,113060.0,1.2379783]
[1754407488786,0.2654795,113070.0,113060.0,1.2389783]
[1754407488992,0.4537695,113070.0,113060.0,1.2389783]
[1754407489377,0.001,113070.0,113060.0,1.2389783]
[1754407489583,0.001,113070.0,113060.0,1.792809]
[1754407490284,0.04534,113070.0,113060.0,1.2389783]
[1754407490484,0.04434,113070.0,113060.0,1.2389783]
[1754407490978,0.4139314,113090.0,113080.0,0.226437]
[1754407491186,0.43838473,113090.0,113080.0,1.286577]
[1754407491585,0.48168473,113090.0,113080.0,1.286577]
[1754407492388,0.48768473,113090.0,113080.0,1.286577]
[1754407492583,0.36356473,113090.0,113080.0,1.286577]
[1754407492785,0.48350473,113090.0,113080.0,1.286577]
[1754407493181,0.48350473,113090.0,113080.0,1.226517]
[1754407493381,1.03733543,113090.0,113080.0,1.10724]
[1754407493591,1.03733543,113090.0,113080.0,0.63928]
[1754407494283,1.0128821,113090.0,113080.0,0.63928]
[1754407494485,0.4544327,113070.0,113060.0,0.6877717]
[1754407494685,0.4544327,113070.0,113060.0,1.3262117]
[1754407496588,1.0082634,113070.0,113060.0,1.10467]
[1754407496787,1.0082634,113070.0,113060.0,1.10447]
[1754407497492,1.0082634,113070.0,113060.0,1.2813883]
[1754407497685,1.0082634,113070.0,113060.0,1.10447]
[1754407497884,1.0082634,113070.0,113060.0,1.04686]
[1754407498085,0.2912083,113060.0,113050.0,0.41841]
[1754407498389,1.008279,113060.0,113050.0,1.05621]
[1754407498789,1.008279,113060.0,113050.0,1.233144]
[1754407499185,1.008279,113060.0,113050.0,1.24249663]
[1754407499490,0.4544483,113060.0,113050.0,1.24249663]
[1754407500483,0.2202181,113070.0,113060.0,0.2251383]
[1754407500792,0.2201714,113090.0,113080.0,0.3665244]
[1754407501093,0.2201714,113090.0,113080.0,1.3209844]
[1754407502987,0.2251714,113090.0,113080.0,1.3209844]
[1754407503184,0.2251714,113090.0,113080.0,1.6817844]
[1754407503587,0.2231714,113090.0,113080.0,1.6817844]
[1754407503792,0.2251714,113090.0,113080.0,1.6817844]
[1754407503993,0.005,113090.0,113080.0,2.2356151]
[1754407504495,0.2643629,113110.0,113100.0,0.1768558]
[1754407504697,0.06753858,113110.0,113100.0,1.2296358]
[1754407504900,0.02423858,113110.0,113100.0,1.2296358]
[1754407505191,0.24437868,113110.0,113100.0,1.2296358]
[1754407505392,0.36431868,113110.0,113100.0,1.2296358]
[1754407505592,0.91814938,113110.0,113100.0,0.8689958]
[1754407505790,0.36431868,113110.0,113100.0,1.2297958]
[1754407505987,0.36431868,113110.0,113100.0,0.8689958]
[1754407506189,0.3450801,113110.0,113100.0,0.87835795]
[1754407506386,0.3460801,113110.0,113100.0,0.69214]
[1754407506585,0.2922457,113100.0,113090.0,0.41278]
[1754407506791,0.3400957,113100.0,113090.0,1.2297714]
[1754407508194,0.4114828,113120.0,113110.0,0.2288201]
[1754407508401,0.4556926,113120.0,113110.0,1.2293801]
[1754407508593,1.0095233,113120.0,113110.0,1.05254]
[1754407508899,0.4989926,113120.0,113110.0,1.2293801]
[1754407509093,0.3842846,113120.0,113110.0,1.2293801]
[1754407509292,0.2643446,113120.0,113110.0,1.2293801]
[1754407509694,0.3842846,113120.0,113110.0,1.2293801]
[1754407509895,0.3842846,113120.0,113110.0,1.05254]
[1754407510199,0.3852846,113120.0,113110.0,1.05254]
[1754407510400,0.9401153,113120.0,113110.0,1.05254]
[1754407510598,1.1240787,113120.0,113100.0,0.05198]
[1754407510796,0.3400958,113100.0,113090.0,0.59884311]
[1754407510997,0.3400958,113100.0,113090.0,1.23836311]
[1754407512396,0.3400958,113100.0,113090.0,1.06149171]
[1754407513003,0.3400958,113100.0,113090.0,1.23836301]
[1754407513203,0.3400958,113100.0,113090.0,0.87956301]
[1754407513405,0.3400958,113100.0,113090.0,1.24336301]
[1754407513705,0.3400958,113100.0,113090.0,1.06649171]
[1754407514396,0.3400958,113100.0,113090.0,1.24336301]
[1754407514598,0.3400958,113100.0,113090.0,1.2311713]
[1754407514795,0.3400958,113100.0,113090.0,1.0553]
[1754407515203,0.3400958,113100.0,113090.0,1.2416757]
[1754407515406,0.16324,113100.0,113090.0,1.2416757]
[1754407515605,0.2201558,113100.0,113090.0,1.2416757]
[1754407517008,0.2201558,113100.0,113090.0,1.2321714]
[1754407517208,0.3400958,113100.0,113090.0,1.2321714]
[1754407517609,0.0433,113100.0,113090.0,1.2321714]
[1754407518010,0.0433,113100.0,113090.0,0.8713714]
[1754407518212,0.0433,113100.0,113090.0,1.2321714]
[1754407519307,0.2201558,113100.0,113090.0,1.2321714]
[1754407519512,0.2201558,113100.0,113090.0,1.24156016]
[1754407520208,0.4030158,113100.0,113090.0,1.0553]
[1754407520409,0.4543858,113100.0,113090.0,1.2321714]
[1754407520705,0.4543858,113100.0,113090.0,0.6945]
[1754407520916,1.0082165,113100.0,113090.0,0.74]
[1754407521211,0.4543858,113100.0,113090.0,0.74]
[1754407521812,0.46384931,113100.0,113090.0,0.74]
[1754407522313,0.4543858,113100.0,113090.0,0.74]
[1754407522509,1.0082165,113100.0,113090.0,0.003]
[1754407522711,1.0092165,113100.0,113090.0,0.63784]
[1754407523712,1.0092165,113100.0,113090.0,0.63684]
[1754407523914,1.0112165,113100.0,113090.0,0.63684]
[1754407524911,1.0112165,113100.0,113090.0,0.68679]
[1754407525713,0.4512114,113090.0,113080.0,1.27323]
[1754407525915,1.0050421,113090.0,113080.0,1.90899]
[1754407526116,1.0050421,113090.0,113080.0,1.22328]
[1754407526311,1.0050421,113090.0,113080.0,1.85908]
[1754407526614,1.0050421,113090.0,113080.0,1.90903]
[1754407526910,1.0070421,113090.0,113080.0,1.859]
[1754407528513,1.0070421,113090.0,113080.0,1.90895]
[1754407529511,1.0080421,113090.0,113080.0,1.90839]
[1754407529705,1.3688421,113090.0,113080.0,1.90839]
[1754407530215,0.8150114,113090.0,113080.0,1.22328]
[1754407530416,1.3688421,113090.0,113080.0,1.90827]
[1754407532213,0.8150114,113090.0,113080.0,1.90827]
[1754407532410,1.3688421,113090.0,113080.0,1.90827]
[1754407533010,1.3688421,113090.0,113080.0,1.90783]
[1754407533417,0.451227,113080.0,113070.0,0.04995]
[1754407533621,1.0050577,113080.0,113070.0,0.68459]
[1754407534211,1.3658577,113080.0,113070.0,0.04995]
[1754407534417,0.2826983,113060.0,113050.0,0.5857197]
[1754407534616,0.1769183,113060.0,113050.0,1.2204797]
[1754407534814,0.1769066,113070.0,113060.0,0.2748683]
[1754407535006,0.3539158,113080.0,113070.0,0.2748527]
[1754407535314,0.3539158,113080.0,113070.0,1.2709727]
[1754407535512,0.3539158,113080.0,113070.0,0.5377027]
[1754407535707,0.5116258,113080.0,113070.0,1.09407]
[1754407535910,0.5839158,113080.0,113070.0,1.09407]
[1754407536111,1.1377465,113080.0,113070.0,0.73327]
[1754407536515,1.1377465,113080.0,113070.0,0.63532]
[1754407536719,1.4985465,113080.0,113070.0,0.63532]
[1754407537620,0.9447158,113080.0,113070.0,0.63532]
[1754407537809,1.4985465,113080.0,113070.0,0.68527]
[1754407538217,1.4985465,113080.0,113070.0,0.63532]
[1754407538519,1.4985465,113080.0,113070.0,0.68527]
[1754407538912,1.4995465,113080.0,113070.0,0.68527]
[1754407539213,1.5005465,113080.0,113070.0,0.68635]
[1754407539516,1.5005465,113080.0,113070.0,0.73435]
[1754407540514,1.5005465,113080.0,113070.0,0.6364]
[1754407540715,1.1397465,113080.0,113070.0,0.9112527]
[1754407541019,0.3559158,113080.0,113070.0,0.6356527]
[1754407541220,0.3559158,113080.0,113070.0,1.2725727]
[1754407542220,0.3549158,113080.0,113070.0,1.2725727]
[1754407542420,0.5366058,113080.0,113070.0,1.2725727]
[1754407543323,0.4153558,113080.0,113070.0,1.2725727]
[1754407543620,0.5116258,113080.0,113070.0,1.09567]
[1754407543816,0.5839158,113080.0,113070.0,0.73487]
[1754407544017,0.5839158,113080.0,113070.0,0.9117727]
[1754407544514,0.5366058,113080.0,113070.0,1.2725727]
[1754407544721,0.2212419,113080.0,113070.0,1.2725727]
[1754407546117,0.2212419,113080.0,113070.0,1.2785727]
[1754407546820,0.2212419,113080.0,113070.0,1.2755727]
[1754407548622,0.3424919,113080.0,113070.0,1.2755726]
[1754407548819,0.8838226,113080.0,113070.0,1.09867]
[1754407549022,1.0050726,113080.0,113070.0,0.73787]
[1754407549721,1.3658726,113080.0,113070.0,0.63992]
[1754407550121,1.3658726,113080.0,113070.0,0.63892]
[1754407550627,1.3658726,113080.0,113070.0,0.73687]
[1754407551223,1.3658726,113080.0,113070.0,0.63892]
[1754407551525,1.3668726,113080.0,113070.0,0.63692]
[1754407551721,0.1769027,113070.0,113060.0,0.41075]
[1754407551923,1.0003834,113070.0,113060.0,0.68611]
[1754407552816,1.0003834,113070.0,113050.0,0.45572]
[1754407552817,0.2248783,113060.0,113050.0,0.45572]
[1754407553021,1.361199,113060.0,113050.0,0.73108]
[1754407553218,1.361199,113060.0,113050.0,0.908014]
[1754407553626,1.000399,113060.0,113050.0,0.73108]
[1754407554127,1.000399,113060.0,113050.0,0.271854]
[1754407554330,1.000399,113060.0,113050.0,0.09492]
[1754407554527,1.000399,113060.0,113050.0,0.73068]
[1754407554924,1.000399,113060.0,113050.0,0.73268]
[1754407555125,1.06960958,113060.0,113050.0,0.73268]
[1754407555326,1.06960958,113060.0,113050.0,0.73368]
[1754407555527,1.06960958,113060.0,113050.0,0.63876]
[1754407555723,1.43040958,113060.0,113050.0,0.63876]
[1754407556330,0.285524,113050.0,113040.0,1.33426125]
[1754407556520,1.0004147,113050.0,113040.0,1.96978125]
[1754407556725,1.0004147,113050.0,113040.0,0.63552]
[1754407557128,0.2855396,113040.0,113030.0,0.2242653]
[1754407557327,1.00978623,113040.0,113030.0,0.8598253]
[1754407557632,1.00978623,113040.0,113030.0,0.8596253]
[1754407557924,1.00978623,113040.0,113030.0,0.9072453]
[1754407558131,1.00978623,113040.0,113030.0,0.73028]
[1754407558330,1.37058623,113040.0,113030.0,0.73028]
[1754407558629,1.37058623,113040.0,113030.0,0.9072453]
[1754407559024,1.37158623,113040.0,113030.0,0.9072453]
[1754407559225,0.81775553,113040.0,113030.0,0.9072453]
[1754407559426,1.37158623,113040.0,113030.0,0.73028]
[1754407559629,1.37258623,113040.0,113030.0,0.73028]
[1754407560227,1.0024303,113040.0,113030.0,0.9072453]
[1754407560433,1.0024303,113040.0,113030.0,1.2680453]
[1754407560833,1.0014303,113040.0,113030.0,1.2680453]
[1754407561333,1.0004303,113040.0,113030.0,1.09108]
[1754407561631,1.0004303,113040.0,113030.0,1.2680452]
[1754407561930,1.0004303,113040.0,113030.0,0.73028]
[1754407562128,1.0004303,113040.0,113030.0,0.9082452]
[1754407562432,1.0004303,113040.0,113030.0,0.73128]
[1754407562632,1.0004303,113040.0,113030.0,0.9072452]
[1754407562935,0.04406,113040.0,113030.0,1.2680452]
[1754407563128,0.2210096,113040.0,113030.0,1.2680452]
[1754407563925,0.2816396,113040.0,113030.0,1.09108]
[1754407564129,0.4465996,113040.0,113030.0,0.73028]
[1754407564329,1.0004303,113040.0,113030.0,0.63536]
[1754407564732,1.0004303,113040.0,113030.0,0.63836]
[1754407564931,1.0004303,113040.0,113030.0,0.68566]
[1754407565133,1.0004303,113040.0,113030.0,0.63836]
[1754407565333,1.3612303,113040.0,113030.0,0.63536]
[1754407565533,0.8073996,113040.0,113030.0,0.63536]
[1754407565735,1.3612303,113040.0,113030.0,0.63536]
[1754407566339,1.0004303,113040.0,113030.0,1.09108]
[1754407566532,1.0004303,113040.0,113030.0,0.73028]
[1754407567036,1.0004303,113040.0,113030.0,1.09108]
[1754407567234,0.2816396,113040.0,113030.0,1.2680453]
[1754407567434,0.2220096,113040.0,113030.0,1.2680453]
[1754407567630,0.04606,113040.0,113030.0,1.2680453]
[1754407567835,0.002,113040.0,113030.0,1.2680453]
[1754407568740,0.3094782,113050.0,113040.0,0.2718696]
[1754407568929,0.3094782,113050.0,113040.0,0.6326696]
[1754407569330,0.2652413,113050.0,113040.0,0.6326696]
[1754407569537,0.9524673,113050.0,113040.0,0.09492]
[1754407569732,1.0004273,113050.0,113040.0,0.09492]
[1754407569931,1.0004273,113050.0,113040.0,0.0473]
[1754407570136,1.0004273,113050.0,113040.0,0.2718696]
[1754407570434,0.04406,113050.0,113040.0,0.6326696]
[1754407570635,0.2652209,113060.0,113050.0,0.176934]
[1754407570944,0.2209783,113060.0,113050.0,1.272374]
[1754407571832,0.3256683,113060.0,113050.0,1.28158997]
[1754407572032,0.3986083,113060.0,113050.0,1.28158997]
[1754407572236,0.4465683,113060.0,113050.0,1.28158997]
[1754407572441,0.4465683,113060.0,113050.0,1.28258997]
[1754407572640,0.2209745,113070.0,113060.0,0.2718383]
[1754407572841,0.2209745,113070.0,113060.0,0.6326383]
[1754407573344,0.3379745,113070.0,113060.0,0.6326383]
[1754407574039,0.3986045,113070.0,113060.0,0.6326383]
[1754407574233,0.4492401,113090.0,113070.0,0.2245227]
[1754407574439,0.3093853,113090.0,113080.0,0.864187]
[1754407574833,0.5060353,113090.0,113080.0,0.73269]
[1754407575040,1.088806,113090.0,113080.0,0.73269]
[1754407575241,1.088806,113090.0,113080.0,0.909577]
[1754407575546,1.089806,113090.0,113080.0,0.73269]
[1754407575945,1.088806,113090.0,113080.0,0.73469]
[1754407576543,1.088806,113090.0,113080.0,0.73269]
[1754407578746,0.11706,113080.0,113060.0,0.3608]
[1754407578950,0.579237,113070.0,113060.0,0.3608]
[1754407579250,1.1330677,113070.0,113060.0,1.01056]
[1754407579448,1.1330677,113070.0,113060.0,1.05595]
[1754407579646,1.1330677,113070.0,113060.0,0.69515]
[1754407579849,1.1330677,113070.0,113060.0,0.74196]
[1754407580248,1.1340677,113070.0,113060.0,0.64976]
[1754407580542,1.4948677,113070.0,113060.0,0.64976]
[1754407580746,0.285524,113050.0,113040.0,0.53065]
[1754407580946,1.0004147,113050.0,113040.0,1.18037]
[1754407581145,1.0004147,113050.0,113040.0,0.72718]
[1754407581346,1.0004147,113050.0,113040.0,0.07542]
[1754407581640,1.0004147,113050.0,113040.0,0.72718]
[1754407581848,0.446584,113050.0,113040.0,0.77154]
[1754407582051,1.0004147,113050.0,113040.0,0.11978]
[1754407582252,1.0004147,113050.0,113040.0,0.72695]
[1754407582446,1.0004147,113050.0,113040.0,0.68167]
[1754407582751,1.0004147,113050.0,113040.0,0.68367]
[1754407582948,1.0004147,113050.0,113040.0,0.72995]
[1754407583249,1.0004147,113050.0,113040.0,0.72795]
[1754407583450,1.0014147,113050.0,113040.0,0.72795]
[1754407583646,1.01178854,113050.0,113040.0,0.68167]
[1754407583848,1.37258854,113050.0,113040.0,0.68167]
[1754407584151,1.37258854,113050.0,113040.0,0.65164]
[1754407587149,0.2834153,113030.0,113020.0,1.67384]
[1754407587452,1.001696,113030.0,113020.0,2.143021]
[1754407587652,0.4478653,113030.0,113020.0,2.143021]
[1754407587950,0.4478653,113030.0,113020.0,1.2234]
[1754407588251,1.001696,113030.0,113020.0,1.87696]
[1754407588453,1.001696,113030.0,113020.0,1.9666]
[1754407588660,1.362496,113030.0,113020.0,0.65444]
[1754407588949,0.8086653,113030.0,113020.0,0.65444]
[1754407589252,1.362496,113030.0,113020.0,0.65444]
[1754407590655,0.8086653,113030.0,113020.0,0.68557]
[1754407590847,1.362496,113030.0,113020.0,0.68557]
[1754407591051,1.362496,113030.0,113020.0,0.65444]
[1754407591452,0.8086653,113030.0,113020.0,0.9210609]
[1754407591655,1.362496,113030.0,113020.0,0.9521909]
[1754407591952,1.001696,113030.0,113020.0,0.9976109]
[1754407592448,0.4488653,113030.0,113020.0,0.9966109]
[1754407592648,0.955136,113030.0,113020.0,0.9966109]
[1754407592954,1.002696,113030.0,113020.0,0.9966109]
[1754407593252,0.4003053,113030.0,113020.0,0.9986109]
[1754407593648,0.2485253,113030.0,113020.0,0.9986109]
[1754407593951,1.001696,113030.0,113020.0,0.82163]
[1754407594156,1.001696,113030.0,113020.0,0.77621]
[1754407594649,1.001696,113030.0,113020.0,0.82163]
[1754407595557,1.362496,113030.0,113020.0,0.68657]
[1754407595752,1.362496,113030.0,113020.0,0.65644]
[1754407596451,1.362496,113030.0,113020.0,0.65544]
[1754407596755,1.362496,113030.0,113020.0,0.002]
[1754407596952,0.447881,113020.0,113010.0,0.74524]
[1754407597154,1.3625117,113020.0,113010.0,0.70088]
[1754407597355,1.3625117,113020.0,113010.0,0.6556]
[1754407597551,0.2834623,113000.0,112990.0,1.86893422]
[1754407597757,1.001743,113000.0,112990.0,2.53377455]
[1754407597959,1.001743,113000.0,112990.0,2.506623]
[1754407598255,0.4479123,113000.0,112990.0,2.3296]
[1754407598456,0.4479123,113000.0,112990.0,2.5066279]
[1754407598656,0.4003523,113000.0,112990.0,2.3296]
[1754407598847,1.001743,113000.0,112990.0,1.9688]
[1754407599045,1.001743,113000.0,112990.0,1.22356]
[1754407599353,1.001743,113000.0,112980.0,0.3608]
[1754407599354,0.447928,112990.0,112980.0,0.48157]
[1754407599554,0.447928,112990.0,112980.0,0.77721]
[1754407599750,1.0017587,112990.0,112980.0,0.77721]
[1754407600149,0.2548836,112980.0,112970.0,0.3668857]
[1754407600452,0.5378128,112970.0,112960.0,0.16619]
[1754407600658,0.4459847,112970.0,112960.0,0.82415]
[1754407600862,0.4889347,112970.0,112960.0,1.18495]
[1754407601255,1.0427654,112970.0,112960.0,1.18479]
[1754407601450,1.0903254,112970.0,112960.0,0.73421]
[1754407601656,1.0903254,112970.0,112960.0,0.82399]
[1754407601964,0.5364947,112970.0,112960.0,0.82399]
[1754407602257,1.0903254,112970.0,112960.0,0.77857]
[1754407602454,1.0903254,112970.0,112960.0,0.82399]
[1754407602652,0.3371547,112970.0,112960.0,0.82399]
[1754407602855,0.5364947,112970.0,112960.0,0.82399]
[1754407603062,0.5364947,112970.0,112960.0,0.16619]
[1754407603256,1.4511254,112970.0,112960.0,0.66652]
[1754407603555,1.4511254,112970.0,112960.0,0.005]
[1754407603763,1.4511254,112970.0,112960.0,0.669]
[1754407604260,1.4511254,112970.0,112960.0,0.013]
[1754407604562,1.4511254,112970.0,112960.0,0.67696]
[1754407605262,0.8972947,112970.0,112960.0,0.013]
[1754407605459,1.4511254,112970.0,112960.0,0.67676]
[1754407605662,1.4511254,112970.0,112960.0,0.013]
[1754407606558,1.4511254,112970.0,112960.0,0.011]
[1754407606956,0.4479906,112950.0,112940.0,0.08964]
[1754407607157,1.0018213,112950.0,112940.0,0.08964]
[1754407607361,1.0018213,112950.0,112940.0,0.75408]
[1754407607560,1.3626213,112950.0,112940.0,0.75408]
[1754407608363,1.3626213,112950.0,112940.0,0.76708]
[1754407608751,1.0018213,112950.0,112940.0,1.0206163]
[1754407608956,0.2486506,112950.0,112940.0,1.3814163]
[1754407609152,0.2486506,112950.0,112940.0,1.3817363]
[1754407609357,0.2200406,112950.0,112940.0,1.3817363]
[1754407610053,0.2200406,112950.0,112940.0,1.15921]
[1754407610257,0.9542613,112950.0,112940.0,0.013]
[1754407610456,1.3626213,112950.0,112940.0,0.677]
[1754407610962,1.3626213,112950.0,112940.0,0.013]
[1754407611257,1.2561713,112950.0,112940.0,0.67884]
[1754407611455,1.810002,112950.0,112940.0,0.67384]
[1754407611657,0.177122,112930.0,112920.0,0.08729]
[1754407611857,1.2502627,112930.0,112920.0,0.75309]
[1754407612060,1.2502627,112930.0,112920.0,0.6658]
[1754407612255,1.2502627,112930.0,112910.0,0.10540895]
[1754407612256,0.2465977,112920.0,112910.0,0.10540895]
[1754407612460,0.8894784,112920.0,112910.0,0.94808235]
[1754407612652,0.3356477,112920.0,112910.0,0.77092895]
[1754407613253,0.8894784,112920.0,112910.0,0.72791895]
[1754407613457,0.8894784,112920.0,112910.0,0.77084895]
[1754407613857,0.3356477,112920.0,112910.0,0.77084895]
[1754407614062,0.8894784,112920.0,112910.0,0.77084895]
[1754407614260,0.2216777,112920.0,112910.0,1.30980235]
[1754407614857,0.04454,112920.0,112910.0,1.30980235]
[1754407615061,0.1791376,112920.0,112910.0,1.30980235]
[1754407615456,0.2216776,112920.0,112910.0,1.30980235]
[1754407615864,0.2216776,112920.0,112910.0,1.31180235]
[1754407617259,0.2216776,112920.0,112910.0,0.72069235]
[1754407617562,0.26395,112930.0,112920.0,0.3368877]
[1754407617762,0.26395,112930.0,112920.0,0.6976877]
[1754407617965,0.36178,112930.0,112920.0,0.6976877]
[1754407618263,0.36178,112930.0,112920.0,0.3368877]
[1754407618759,0.36178,112930.0,112920.0,0.6986877]
[1754407618966,0.36278,112930.0,112920.0,0.6986877]
[1754407619464,0.4831,112930.0,112920.0,0.6986877]
[1754407619865,0.43659,112930.0,112920.0,0.6986877]
[1754407620165,0.001,112930.0,112920.0,0.6986877]
[1754407620466,0.220662,112930.0,112920.0,0.6986877]
[1754407621354,0.219662,112930.0,112920.0,1.3609677]
[1754407621561,0.290122,112930.0,112920.0,1.18783]
[1754407621866,0.365002,112930.0,112920.0,1.3649677]
[1754407622066,0.410392,112930.0,112920.0,1.3649676]
[1754407622367,0.438812,112930.0,112920.0,1.3649676]
[1754407622565,0.220662,112930.0,112920.0,1.3649676]
[1754407622762,0.001,112930.0,112920.0,1.3649676]
[1754407622967,0.04354,112930.0,112920.0,1.3649676]
[1754407623562,0.001,112930.0,112920.0,2.3959103]
[1754407623868,0.2196307,112950.0,112940.0,0.4244055]
[1754407624064,0.6888757,112970.0,112950.0,0.0442693]
[1754407624272,0.04254,112960.0,112950.0,0.755121]
[1754407624566,0.04254,112960.0,112950.0,1.417681]
[1754407624766,0.1770593,112970.0,112960.0,0.2213425]
[1754407624958,0.44991181,112980.0,112970.0,0.2614793]
[1754407625160,0.35799483,112980.0,112970.0,1.2848793]
[1754407625466,0.28853483,112980.0,112970.0,1.2848793]
[1754407625762,0.02467763,112980.0,112970.0,1.2848793]
[1754407625969,0.2655559,112990.0,112980.0,0.1770436]
[1754407626162,0.35945113,112990.0,112980.0,0.6222636]
[1754407626368,1.00233183,112990.0,112980.0,0.08442]
[1754407626663,0.06697523,112990.0,112980.0,0.6222636]
[1754407627062,0.04254,112990.0,112980.0,0.6222636]
[1754407627263,0.2195679,112990.0,112980.0,0.6945218]
[1754407627464,0.06660914,112990.0,112980.0,0.6945218]
[1754407627767,0.02406914,112990.0,112980.0,0.88064448]
[1754407628074,0.3080707,113000.0,112990.0,0.261448]
[1754407628269,0.33214204,113000.0,112990.0,0.923408]
[1754407628470,0.40160204,113000.0,112990.0,0.74638]
[1754407628770,0.44811204,113000.0,112990.0,0.923408]
[1754407628972,0.40385754,113000.0,112990.0,1.284208]
[1754407629169,0.40385754,113000.0,112990.0,0.923408]
[1754407629366,0.31308364,113000.0,112990.0,0.923408]
[1754407629762,0.31308364,113000.0,112990.0,0.924408]
[1754407629967,0.14307134,113000.0,112990.0,0.924408]